[Event "*** SCC Grand Prix: Titled Tuesday Blitz"]
[Site "Chess.com"]
[Date "2020.06.02"]
[Round "6"]
[White "joksijoksi"]
[Black "Arek_pacitan"]
[Result "0-1"]
[WhiteElo "2338"]
[BlackElo "2538"]
[TimeControl "180+1"]
[EndTime "11:08:07 PDT"]
[Termination "Arek_pacitan won by resignation"]

1. d4 {[%clk 0:02:42.7]} 1... Nf6 {[%clk 0:02:58.1]} 2. c4 {[%clk 0:02:43.3]}
2... e6 {[%clk 0:02:56.7]} 3. Nc3 {[%clk 0:02:43.9]} 3... d5 {[%clk 0:02:57.1]}
4. Nf3 {[%clk 0:02:43.5]} 4... c5 {[%clk 0:02:57.4]} 5. cxd5 {[%clk 0:02:38.1]}
5... exd5 {[%clk 0:02:55]} 6. g3 {[%clk 0:02:38.5]} 6... Nc6 {[%clk 0:02:53.1]}
7. Bg2 {[%clk 0:02:38.1]} 7... cxd4 {[%clk 0:02:53.5]} 8. Nxd4 {[%clk 0:02:32]}
8... Bc5 {[%clk 0:02:53.8]} 9. Nxc6 {[%clk 0:01:57.1]} 9... bxc6 {[%clk
0:02:51.4]} 10. O-O {[%clk 0:01:57.3]} 10... O-O {[%clk 0:02:49]} 11. b3 {[%clk
0:01:46.3]} 11... Re8 {[%clk 0:02:45.1]} 12. Bb2 {[%clk 0:01:44.9]} 12... Ba6
{[%clk 0:02:38.1]} 13. Bf3 {[%clk 0:01:25.9]} 13... Qe7 {[%clk 0:02:31.6]} 14.
Na4 {[%clk 0:00:59.7]} 14... Bb4 {[%clk 0:02:21.8]} 15. Rc1 {[%clk 0:00:50.4]}
15... Rac8 {[%clk 0:02:13.8]} 16. a3 {[%clk 0:00:47.1]} 16... Bxa3 {[%clk
0:02:02.4]} 17. Bxa3 {[%clk 0:00:46.4]} 17... Qxa3 {[%clk 0:02:03.3]} 18. Nc5
{[%clk 0:00:47]} 18... Bb5 {[%clk 0:02:02]} 19. Qd4 {[%clk 0:00:34.1]} 19... Qa5
{[%clk 0:01:48.9]} 20. g4 {[%clk 0:00:20.8]} 20... Qb6 {[%clk 0:01:43.2]} 21. g5
{[%clk 0:00:17.5]} 21... Ne4 {[%clk 0:01:41.2]} 22. b4 {[%clk 0:00:13.7]} 22...
Nxg5 {[%clk 0:01:38.6]} 23. Bg4 {[%clk 0:00:13.7]} 23... Rcd8 {[%clk 0:01:37.4]}
24. f3 {[%clk 0:00:13.4]} 24... Ne6 {[%clk 0:01:35]} 25. Bxe6 {[%clk 0:00:13.3]}
25... fxe6 {[%clk 0:01:31.3]} 26. Rf2 {[%clk 0:00:12.9]} 26... e5 {[%clk
0:01:31.1]} 27. Qg4 {[%clk 0:00:10.6]} 27... Qc7 {[%clk 0:01:29.2]} 28. Rg2
{[%clk 0:00:10.5]} 28... Qf7 {[%clk 0:01:26.9]} 29. Kh1 {[%clk 0:00:10]} 29...
Re7 {[%clk 0:01:24.3]} 30. Rcg1 {[%clk 0:00:09.3]} 30... Kh8 {[%clk 0:01:23.7]}
31. Rg3 {[%clk 0:00:07.8]} 31... Rg8 {[%clk 0:01:22.2]} 32. Rh3 {[%clk
0:00:07.8]} 32... g6 {[%clk 0:01:22.7]} 33. Rh4 {[%clk 0:00:05.6]} 33... Bxe2
{[%clk 0:01:20.9]} 34. Rg3 {[%clk 0:00:05.4]} 34... e4 {[%clk 0:01:19]} 35. Rgh3
{[%clk 0:00:03.6]} 35... Bxf3+ {[%clk 0:01:18.8]} 0-1

[Event "*** SCC Grand Prix: Titled Tuesday Blitz"]
[Site "Chess.com"]
[Date "2020.06.02"]
[Round "6"]
[White "RianKapriaga"]
[Black "Manukyan_Artak"]
[Result "0-1"]
[WhiteElo "2181"]
[BlackElo "2347"]
[TimeControl "180+1"]
[EndTime "11:08:07 PDT"]
[Termination "Manukyan_Artak won by resignation"]

1. d4 {[%clk 0:03:00.9]} 1... c6 {[%clk 0:03:00]} 2. Nf3 {[%clk 0:03:01.3]} 2...
d5 {[%clk 0:03:00]} 3. Bf4 {[%clk 0:03:01.6]} 3... Nf6 {[%clk 0:02:59.9]} 4. e3
{[%clk 0:03:02]} 4... Bf5 {[%clk 0:02:59.9]} 5. c4 {[%clk 0:02:58.6]} 5... e6
{[%clk 0:02:59.5]} 6. Qb3 {[%clk 0:02:57.9]} 6... Nbd7 {[%clk 0:02:56.4]} 7. Nc3
{[%clk 0:02:56.2]} 7... Ne4 {[%clk 0:02:49]} 8. h3 {[%clk 0:02:55.4]} 8... Qb6
{[%clk 0:02:47.8]} 9. c5 {[%clk 0:02:54.3]} 9... Qxb3 {[%clk 0:02:42.4]} 10.
axb3 {[%clk 0:02:53.3]} 10... a6 {[%clk 0:02:42.9]} 11. b4 {[%clk 0:02:52.7]}
11... Rc8 {[%clk 0:02:40.9]} 12. g4 {[%clk 0:02:43]} 12... Nxc3 {[%clk
0:02:33.9]} 13. bxc3 {[%clk 0:02:41.8]} 13... Be4 {[%clk 0:02:34.3]} 14. Bg2
{[%clk 0:02:39.9]} 14... f6 {[%clk 0:02:34.4]} 15. O-O {[%clk 0:02:37.2]} 15...
g5 {[%clk 0:02:32.2]} 16. Bg3 {[%clk 0:02:35.4]} 16... h5 {[%clk 0:02:31.4]} 17.
Nd2 {[%clk 0:02:33.5]} 17... Bxg2 {[%clk 0:02:30.3]} 18. Kxg2 {[%clk 0:02:33]}
18... hxg4 {[%clk 0:02:30.6]} 19. hxg4 {[%clk 0:02:33.9]} 19... Bg7 {[%clk
0:02:30.6]} 20. Nb3 {[%clk 0:02:32.7]} 20... e5 {[%clk 0:02:27.6]} 21. Na5
{[%clk 0:02:31.3]} 21... Rc7 {[%clk 0:02:27.4]} 22. Rh1 {[%clk 0:02:29.8]} 22...
Kf7 {[%clk 0:02:26.4]} 23. Rxh8 {[%clk 0:02:27.7]} 23... Bxh8 {[%clk 0:02:27.3]}
24. Rh1 {[%clk 0:02:26.4]} 24... Bg7 {[%clk 0:02:26.8]} 25. f4 {[%clk
0:02:20.5]} 25... gxf4 {[%clk 0:02:21]} 26. exf4 {[%clk 0:02:19.8]} 26... exd4
{[%clk 0:02:21.3]} 27. cxd4 {[%clk 0:02:19]} 27... Nf8 {[%clk 0:02:13.4]} 28. f5
{[%clk 0:02:14.6]} 28... Re7 {[%clk 0:02:10.3]} 29. Re1 {[%clk 0:02:12.4]} 29...
Rd7 {[%clk 0:02:05.1]} 30. Bf4 {[%clk 0:02:10.6]} 30... Nh7 {[%clk 0:02:00.8]}
31. Kf3 {[%clk 0:02:09.9]} 31... Ng5+ {[%clk 0:01:52.1]} 32. Bxg5 {[%clk
0:02:07.2]} 32... fxg5 {[%clk 0:01:49.7]} 33. Nb3 {[%clk 0:02:02]} 33... Bf6
{[%clk 0:01:46.1]} 34. Re5 {[%clk 0:02:00.5]} 34... Bxe5 {[%clk 0:01:39]} 35.
dxe5 {[%clk 0:01:59.6]} 35... Rd8 {[%clk 0:01:39.2]} 36. Nd4 {[%clk 0:01:59.9]}
36... Rh8 {[%clk 0:01:36.9]} 37. Ne6 {[%clk 0:01:56.6]} 37... Rh3+ {[%clk
0:01:34.4]} 38. Kf2 {[%clk 0:01:53]} 38... Rb3 {[%clk 0:01:32.9]} 39. Nxg5+
{[%clk 0:01:51.5]} 39... Kf8 {[%clk 0:01:30.3]} 40. f6 {[%clk 0:01:50.4]} 40...
Rxb4 {[%clk 0:01:29.9]} 41. Kf3 {[%clk 0:01:45.3]} 41... a5 {[%clk 0:01:17.3]}
42. e6 {[%clk 0:01:44.8]} 42... a4 {[%clk 0:01:16.8]} 43. e7+ {[%clk 0:01:42.7]}
43... Ke8 {[%clk 0:01:16.1]} 44. Ne6 {[%clk 0:01:43.1]} 44... Re4 {[%clk
0:01:15.5]} 45. Nc7+ {[%clk 0:01:21.9]} 45... Kd7 {[%clk 0:01:13.9]} 46. e8=Q+
{[%clk 0:01:12.2]} 46... Rxe8 {[%clk 0:01:13]} 47. Nxe8 {[%clk 0:01:10.8]} 47...
Kxe8 {[%clk 0:01:13.9]} 48. g5 {[%clk 0:01:05.7]} 48... a3 {[%clk 0:01:11.4]}
49. g6 {[%clk 0:01:05.7]} 49... a2 {[%clk 0:01:10.6]} 50. f7+ {[%clk 0:01:05.7]}
50... Kf8 {[%clk 0:01:10.6]} 51. Kf4 {[%clk 0:01:05.2]} 51... a1=Q {[%clk
0:01:10.7]} 52. Kf5 {[%clk 0:01:05.4]} 52... Qg7 {[%clk 0:01:09.3]} 0-1

[Event "*** SCC Grand Prix: Titled Tuesday Blitz"]
[Site "Chess.com"]
[Date "2020.06.02"]
[Round "6"]
[White "Radzio1987"]
[Black "GothamChess"]
[Result "1-0"]
[WhiteElo "2899"]
[BlackElo "2618"]
[TimeControl "180+1"]
[EndTime "11:08:08 PDT"]
[Termination "Radzio1987 won on time"]

1. c4 {[%clk 0:03:00.9]} 1... b6 {[%clk 0:02:59.8]} 2. Nc3 {[%clk 0:02:59.8]}
2... Bb7 {[%clk 0:03:00.2]} 3. d4 {[%clk 0:03:00.4]} 3... e6 {[%clk 0:03:00.4]}
4. Bf4 {[%clk 0:02:58.3]} 4... Bb4 {[%clk 0:02:54]} 5. e3 {[%clk 0:02:55.1]}
5... f5 {[%clk 0:02:48.6]} 6. Ne2 {[%clk 0:02:53.8]} 6... Nf6 {[%clk 0:02:48.4]}
7. a3 {[%clk 0:02:53.5]} 7... Be7 {[%clk 0:02:37.3]} 8. d5 {[%clk 0:02:52.5]}
8... O-O {[%clk 0:02:30.3]} 9. Nd4 {[%clk 0:02:38.3]} 9... Qc8 {[%clk
0:02:10.7]} 10. Be2 {[%clk 0:02:37.8]} 10... Na6 {[%clk 0:01:52.8]} 11. O-O
{[%clk 0:02:36.9]} 11... Nc5 {[%clk 0:01:42.7]} 12. Bf3 {[%clk 0:02:35.8]} 12...
Nce4 {[%clk 0:01:38.6]} 13. Bxe4 {[%clk 0:02:28]} 13... fxe4 {[%clk 0:01:33.8]}
14. dxe6 {[%clk 0:02:23.8]} 14... dxe6 {[%clk 0:01:33.9]} 15. Ndb5 {[%clk
0:02:17.6]} 15... Ne8 {[%clk 0:01:02.3]} 16. Qg4 {[%clk 0:02:06.3]} 16... c5
{[%clk 0:00:55.9]} 17. a4 {[%clk 0:02:03]} 17... a6 {[%clk 0:00:46]} 18. Na3
{[%clk 0:02:02.9]} 18... Nf6 {[%clk 0:00:40.3]} 19. Qh3 {[%clk 0:02:01.5]} 19...
Kh8 {[%clk 0:00:26.5]} 20. a5 {[%clk 0:01:55.5]} 20... bxa5 {[%clk 0:00:26.7]}
21. Nab1 {[%clk 0:01:55.7]} 21... Qe8 {[%clk 0:00:21]} 22. Nd2 {[%clk
0:01:49.3]} 22... Bc8 {[%clk 0:00:17.8]} 23. Bg5 {[%clk 0:01:40.9]} 23... e5
{[%clk 0:00:16.7]} 24. Qh4 {[%clk 0:01:41.2]} 24... Qg6 {[%clk 0:00:12.1]} 25.
Ndxe4 {[%clk 0:01:29.1]} 25... Bb7 {[%clk 0:00:10.6]} 26. f3 {[%clk 0:01:22.1]}
26... Nxe4 {[%clk 0:00:04.8]} 27. Bxe7 {[%clk 0:01:18.3]} 27... Nxc3 {[%clk
0:00:03.2]} 28. Bxf8 {[%clk 0:01:09.9]} 28... Ne2+ {[%clk 0:00:03.3]} 29. Kh1
{[%clk 0:01:10]} 29... Rxf8 {[%clk 0:00:02.9]} 30. Qe7 {[%clk 0:01:10.5]} 30...
Qf7 {[%clk 0:00:02.5]} 31. Qxf7 {[%clk 0:01:10.1]} 31... Rxf7 {[%clk 0:00:03.4]}
32. Rf2 {[%clk 0:01:09.6]} 32... e4 {[%clk 0:00:01.6]} 33. f4 {[%clk 0:01:09.5]}
1-0

[Event "*** SCC Grand Prix: Titled Tuesday Blitz"]
[Site "Chess.com"]
[Date "2020.06.02"]
[Round "6"]
[White "WelshTiger"]
[Black "stolencandy13"]
[Result "0-1"]
[WhiteElo "2369"]
[BlackElo "2566"]
[TimeControl "180+1"]
[EndTime "11:08:08 PDT"]
[Termination "stolencandy13 won by resignation"]

1. e4 {[%clk 0:03:00.9]} 1... c6 {[%clk 0:02:59.5]} 2. d4 {[%clk 0:03:00.8]}
2... d5 {[%clk 0:03:00.4]} 3. Nd2 {[%clk 0:03:01]} 3... dxe4 {[%clk 0:02:59.7]}
4. Nxe4 {[%clk 0:03:01.9]} 4... Bf5 {[%clk 0:03:00.2]} 5. Ng3 {[%clk 0:03:02]}
5... Bg6 {[%clk 0:03:00.9]} 6. Nh3 {[%clk 0:03:02.6]} 6... Nf6 {[%clk
0:02:43.6]} 7. Bc4 {[%clk 0:03:01.5]} 7... e6 {[%clk 0:02:37.3]} 8. Nf4 {[%clk
0:03:00.9]} 8... Bd6 {[%clk 0:02:31.9]} 9. c3 {[%clk 0:03:00.9]} 9... Nbd7
{[%clk 0:02:28.7]} 10. Qf3 {[%clk 0:02:53.5]} 10... Qc7 {[%clk 0:02:24]} 11. Bd2
{[%clk 0:02:47.1]} 11... O-O-O {[%clk 0:02:21]} 12. O-O-O {[%clk 0:02:47]} 12...
Nb6 {[%clk 0:02:12.4]} 13. Bb3 {[%clk 0:02:45.7]} 13... Nbd5 {[%clk 0:02:11.3]}
14. Nxg6 {[%clk 0:02:44.6]} 14... hxg6 {[%clk 0:02:09.5]} 15. h4 {[%clk
0:02:15.4]} 15... Bf4 {[%clk 0:02:01.8]} 16. Ne4 {[%clk 0:02:11.8]} 16... Nxe4
{[%clk 0:01:57.4]} 17. Qxe4 {[%clk 0:02:11.9]} 17... Bxd2+ {[%clk 0:01:57.4]}
18. Rxd2 {[%clk 0:02:12.1]} 18... Qe7 {[%clk 0:01:38.3]} 19. g3 {[%clk
0:02:09.7]} 19... g5 {[%clk 0:01:28]} 20. hxg5 {[%clk 0:01:38]} 20... Qxg5
{[%clk 0:01:23.2]} 21. Rxh8 {[%clk 0:01:24.9]} 21... Rxh8 {[%clk 0:01:24.1]} 22.
Qf3 {[%clk 0:01:23]} 22... Nf6 {[%clk 0:01:19.6]} 23. Bc2 {[%clk 0:01:14]} 23...
Rh2 {[%clk 0:01:16]} 24. Bd3 {[%clk 0:01:02.6]} 24... Ng4 {[%clk 0:01:10.8]} 25.
Kc2 {[%clk 0:00:45]} 25... Qxd2+ {[%clk 0:01:07.4]} 26. Kxd2 {[%clk 0:00:44.8]}
26... Rxf2+ {[%clk 0:01:08]} 27. Qxf2 {[%clk 0:00:42.8]} 27... Nxf2 {[%clk
0:01:08.9]} 28. Bc2 {[%clk 0:00:41.6]} 28... Ng4 {[%clk 0:01:07]} 29. Kd3 {[%clk
0:00:40.7]} 29... Kd7 {[%clk 0:01:06.3]} 30. c4 {[%clk 0:00:39.6]} 30... b6
{[%clk 0:01:03.4]} 31. Ke4 {[%clk 0:00:38.2]} 31... c5 {[%clk 0:00:59.1]} 32.
dxc5 {[%clk 0:00:33.7]} 32... bxc5 {[%clk 0:00:58.2]} 33. a3 {[%clk 0:00:34.3]}
33... a5 {[%clk 0:00:55.3]} 34. Bd1 {[%clk 0:00:31.2]} 34... Nf2+ {[%clk
0:00:46.5]} 0-1

[Event "*** SCC Grand Prix: Titled Tuesday Blitz"]
[Site "Chess.com"]
[Date "2020.06.02"]
[Round "6"]
[White "chesslh19"]
[Black "Sunnika"]
[Result "0-1"]
[WhiteElo "2180"]
[BlackElo "2400"]
[TimeControl "180+1"]
[EndTime "11:08:08 PDT"]
[Termination "Sunnika won on time"]

1. e4 {[%clk 0:03:00.9]} 1... e6 {[%clk 0:02:58]} 2. d4 {[%clk 0:03:00.4]} 2...
d5 {[%clk 0:02:58.6]} 3. Nd2 {[%clk 0:03:01]} 3... Nf6 {[%clk 0:02:58.3]} 4. e5
{[%clk 0:03:01]} 4... Nfd7 {[%clk 0:02:58.9]} 5. Bd3 {[%clk 0:03:01.6]} 5... c5
{[%clk 0:02:59.5]} 6. c3 {[%clk 0:03:02.3]} 6... Nc6 {[%clk 0:03:00.1]} 7. Ne2
{[%clk 0:03:03]} 7... cxd4 {[%clk 0:03:01]} 8. cxd4 {[%clk 0:03:03.1]} 8... f6
{[%clk 0:03:01.6]} 9. exf6 {[%clk 0:03:03.2]} 9... Qxf6 {[%clk 0:03:02.5]} 10.
Nf3 {[%clk 0:03:02.3]} 10... h6 {[%clk 0:03:03.2]} 11. O-O {[%clk 0:02:41.9]}
11... Bd6 {[%clk 0:03:03.2]} 12. Ng3 {[%clk 0:02:23.6]} 12... O-O {[%clk
0:03:03.4]} 13. Re1 {[%clk 0:01:54.9]} 13... a6 {[%clk 0:03:03]} 14. a3 {[%clk
0:01:44.4]} 14... Rf7 {[%clk 0:03:01.2]} 15. Be3 {[%clk 0:01:34.3]} 15... Nf8
{[%clk 0:02:58.8]} 16. Rc1 {[%clk 0:01:27.2]} 16... Bd7 {[%clk 0:02:49.8]} 17.
b4 {[%clk 0:01:22.3]} 17... Be8 {[%clk 0:02:47.5]} 18. Qb3 {[%clk 0:01:05.3]}
18... Rc7 {[%clk 0:02:47.3]} 19. Rc2 {[%clk 0:00:43.5]} 19... Rac8 {[%clk
0:02:45.9]} 20. Rec1 {[%clk 0:00:41.6]} 20... Bg6 {[%clk 0:02:42.2]} 21. Bxg6
{[%clk 0:00:28]} 21... Nxg6 {[%clk 0:02:43.1]} 22. a4 {[%clk 0:00:21.2]} 22...
Nf4 {[%clk 0:02:10.4]} 23. b5 {[%clk 0:00:17.2]} 23... Na5 {[%clk 0:02:09.3]}
24. Qa2 {[%clk 0:00:09.4]} 24... Nc4 {[%clk 0:02:08]} 25. Bxf4 {[%clk
0:00:06.5]} 25... Bxf4 {[%clk 0:02:06.7]} 26. Nh5 {[%clk 0:00:06.7]} 26... Qf7
{[%clk 0:02:03.6]} 27. Nxf4 {[%clk 0:00:06.8]} 27... Qxf4 {[%clk 0:02:04.5]} 28.
Ne5 {[%clk 0:00:05.7]} 28... Qxd4 {[%clk 0:02:00.7]} 29. Nxc4 {[%clk 0:00:03.2]}
29... Rxc4 {[%clk 0:02:00.4]} 30. Rxc4 {[%clk 0:00:03.4]} 30... Rxc4 {[%clk
0:01:59.5]} 31. Rf1 {[%clk 0:00:03.4]} 31... Rxa4 {[%clk 0:01:58.5]} 32. Qb3
{[%clk 0:00:02.7]} 32... Rb4 {[%clk 0:01:58.4]} 33. Qh3 {[%clk 0:00:01.6]} 33...
Qg4 {[%clk 0:01:56.1]} 34. Qe3 {[%clk 0:00:01.4]} 34... Rxb5 {[%clk 0:01:54.1]}
35. Qe5 {[%clk 0:00:01.3]} 35... Qf5 {[%clk 0:01:52.6]} 36. Qb8+ {[%clk
0:00:01.8]} 36... Kh7 {[%clk 0:01:52.2]} 37. h3 {[%clk 0:00:02.4]} 37... d4
{[%clk 0:01:49.6]} 38. Rc1 {[%clk 0:00:02.4]} 38... Rb1 {[%clk 0:01:45.2]} 39.
Rxb1 {[%clk 0:00:01.6]} 39... Qxb1+ {[%clk 0:01:46.1]} 40. Kh2 {[%clk
0:00:02.4]} 40... Qe4 {[%clk 0:01:39.9]} 41. g3 {[%clk 0:00:01.9]} 41... d3
{[%clk 0:01:38]} 42. Qd6 {[%clk 0:00:02.2]} 42... Qd5 {[%clk 0:01:35.8]} 43. Qa3
{[%clk 0:00:01]} 43... d2 {[%clk 0:01:35.3]} 0-1

[Event "*** SCC Grand Prix: Titled Tuesday Blitz"]
[Site "Chess.com"]
[Date "2020.06.02"]
[Round "6"]
[White "checkmatequen"]
[Black "Omk124"]
[Result "0-1"]
[WhiteElo "2260"]
[BlackElo "2441"]
[TimeControl "180+1"]
[EndTime "11:08:10 PDT"]
[Termination "Omk124 won by checkmate"]

1. e4 {[%clk 0:03:00.9]} 1... g6 {[%clk 0:02:58.9]} 2. d4 {[%clk 0:03:00]} 2...
Bg7 {[%clk 0:02:59.1]} 3. Nc3 {[%clk 0:02:59.9]} 3... c6 {[%clk 0:02:59.3]} 4.
Be3 {[%clk 0:03:00.1]} 4... d5 {[%clk 0:02:57.6]} 5. Nf3 {[%clk 0:02:59.8]} 5...
dxe4 {[%clk 0:02:56]} 6. Nxe4 {[%clk 0:02:58.8]} 6... Bf5 {[%clk 0:02:54.1]} 7.
Ng3 {[%clk 0:02:55.9]} 7... Bg4 {[%clk 0:02:53.3]} 8. Be2 {[%clk 0:02:54.3]}
8... Nf6 {[%clk 0:02:52.7]} 9. h3 {[%clk 0:02:53.8]} 9... Bxf3 {[%clk
0:02:52.5]} 10. Bxf3 {[%clk 0:02:54.7]} 10... O-O {[%clk 0:02:52.8]} 11. Qd2
{[%clk 0:02:54.8]} 11... Re8 {[%clk 0:02:52.5]} 12. O-O-O {[%clk 0:02:55.2]}
12... Nd5 {[%clk 0:02:52.7]} 13. Bh6 {[%clk 0:02:54.3]} 13... Bh8 {[%clk
0:02:52.4]} 14. h4 {[%clk 0:02:54]} 14... Nd7 {[%clk 0:02:50.8]} 15. h5 {[%clk
0:02:54.3]} 15... b5 {[%clk 0:02:40]} 16. Bxd5 {[%clk 0:02:29.5]} 16... cxd5
{[%clk 0:02:40]} 17. f4 {[%clk 0:02:29.1]} 17... e6 {[%clk 0:02:28.9]} 18. f5
{[%clk 0:02:17.4]} 18... exf5 {[%clk 0:02:27]} 19. Nxf5 {[%clk 0:02:16.4]} 19...
gxf5 {[%clk 0:02:20.3]} 20. Rh3 {[%clk 0:02:15.6]} 20... Bf6 {[%clk 0:02:17.3]}
21. Qf4 {[%clk 0:02:06.8]} 21... Qb6 {[%clk 0:02:13]} 22. Qxf5 {[%clk
0:02:02.9]} 22... Qe6 {[%clk 0:02:12.9]} 23. Qf4 {[%clk 0:01:50.6]} 23... Kh8
{[%clk 0:02:04.3]} 24. g4 {[%clk 0:01:43.2]} 24... Qe4 {[%clk 0:02:01.8]} 25.
Qd6 {[%clk 0:01:31.2]} 25... Qxg4 {[%clk 0:01:48.2]} 26. Rg3 {[%clk 0:01:30.7]}
26... Qxh5 {[%clk 0:01:45.8]} 27. Bf4 {[%clk 0:01:14.7]} 27... Qf5 {[%clk
0:01:42.9]} 28. Rh1 {[%clk 0:01:07.8]} 28... Re6 {[%clk 0:01:37]} 29. Qc7 {[%clk
0:00:54.4]} 29... Rae8 {[%clk 0:01:28.9]} 30. Bd2 {[%clk 0:00:50.5]} 30... Nb6
{[%clk 0:01:23.2]} 31. Rgh3 {[%clk 0:00:42.8]} 31... Nc4 {[%clk 0:01:07.6]} 32.
Rxh7+ {[%clk 0:00:37.2]} 32... Qxh7 {[%clk 0:01:07.2]} 33. Rxh7+ {[%clk
0:00:38]} 33... Kxh7 {[%clk 0:01:08.1]} 34. Qxf7+ {[%clk 0:00:37.6]} 34... Kh8
{[%clk 0:01:08.3]} 35. Qh5+ {[%clk 0:00:31.7]} 35... Kg8 {[%clk 0:01:08.2]} 36.
Qxd5 {[%clk 0:00:30.1]} 36... Kg7 {[%clk 0:01:04.9]} 37. Qb7+ {[%clk 0:00:26.7]}
37... R8e7 {[%clk 0:01:03.8]} 38. Qg2+ {[%clk 0:00:26.6]} 38... Kf7 {[%clk
0:01:03.5]} 39. b3 {[%clk 0:00:25.8]} 39... Re1+ {[%clk 0:01:02.9]} 40. Bxe1
{[%clk 0:00:25]} 40... Rxe1# {[%clk 0:01:03.8]} 0-1

[Event "*** SCC Grand Prix: Titled Tuesday Blitz"]
[Site "Chess.com"]
[Date "2020.06.02"]
[Round "6"]
[White "vovachesss"]
[Black "yamalchess"]
[Result "1-0"]
[WhiteElo "2647"]
[BlackElo "2463"]
[TimeControl "180+1"]
[EndTime "11:08:12 PDT"]
[Termination "vovachesss won on time"]

1. d4 {[%clk 0:03:00.9]} 1... f5 {[%clk 0:02:46.1]} 2. Nc3 {[%clk 0:02:59.6]}
2... Nf6 {[%clk 0:02:43.6]} 3. Bg5 {[%clk 0:02:59.4]} 3... d5 {[%clk 0:02:43.3]}
4. Bxf6 {[%clk 0:02:39.2]} 4... exf6 {[%clk 0:02:37]} 5. e3 {[%clk 0:02:40.1]}
5... Be6 {[%clk 0:02:29.8]} 6. Bd3 {[%clk 0:02:37.9]} 6... Nc6 {[%clk 0:02:26]}
7. Nge2 {[%clk 0:02:27.7]} 7... Qd7 {[%clk 0:02:17.9]} 8. Nf4 {[%clk 0:02:21.3]}
8... Bf7 {[%clk 0:02:16.9]} 9. h4 {[%clk 0:02:19.4]} 9... h5 {[%clk 0:02:15.7]}
10. Qf3 {[%clk 0:02:13.5]} 10... O-O-O {[%clk 0:01:46]} 11. O-O-O {[%clk
0:02:02.3]} 11... g6 {[%clk 0:01:43.4]} 12. Bb5 {[%clk 0:01:57.8]} 12... Qd6
{[%clk 0:01:26.5]} 13. Ba4 {[%clk 0:01:27.3]} 13... a6 {[%clk 0:01:24.6]} 14.
Bb3 {[%clk 0:01:26.9]} 14... Ne7 {[%clk 0:01:13]} 15. Kb1 {[%clk 0:01:27]} 15...
Kb8 {[%clk 0:00:48.6]} 16. Na4 {[%clk 0:01:25.1]} 16... Bh6 {[%clk 0:00:43.3]}
17. g3 {[%clk 0:01:22.5]} 17... Ka7 {[%clk 0:00:42.6]} 18. Rc1 {[%clk
0:01:22.2]} 18... b6 {[%clk 0:00:34.6]} 19. Nd3 {[%clk 0:01:03.3]} 19... g5
{[%clk 0:00:31.5]} 20. c4 {[%clk 0:01:00.9]} 20... dxc4 {[%clk 0:00:28.4]} 21.
Bxc4 {[%clk 0:01:01.8]} 21... Bxc4 {[%clk 0:00:26.4]} 22. Rxc4 {[%clk
0:01:02.7]} 22... Nd5 {[%clk 0:00:14.3]} 23. Nc3 {[%clk 0:00:52.8]} 23... Nxc3+
{[%clk 0:00:13.2]} 24. Rxc3 {[%clk 0:00:53.3]} 24... f4 {[%clk 0:00:12.2]} 25.
Rhc1 {[%clk 0:00:53.4]} 25... Rd7 {[%clk 0:00:11]} 26. Nb4 {[%clk 0:00:51.3]}
1-0

[Event "*** SCC Grand Prix: Titled Tuesday Blitz"]
[Site "Chess.com"]
[Date "2020.06.02"]
[Round "6"]
[White "mbachez"]
[Black "Khazieva_Elza"]
[Result "1-0"]
[WhiteElo "2537"]
[BlackElo "2278"]
[TimeControl "180+1"]
[EndTime "11:08:12 PDT"]
[Termination "mbachez won on time"]

1. e4 {[%clk 0:03:00.9]} 1... c5 {[%clk 0:02:58.5]} 2. Nf3 {[%clk 0:03:00.7]}
2... d6 {[%clk 0:02:58.1]} 3. Bc4 {[%clk 0:03:00.4]} 3... e6 {[%clk 0:02:55.4]}
4. O-O {[%clk 0:02:59.1]} 4... Nf6 {[%clk 0:02:54.7]} 5. Qe2 {[%clk 0:02:59.1]}
5... Be7 {[%clk 0:02:54.6]} 6. c3 {[%clk 0:02:58.8]} 6... O-O {[%clk 0:02:54.5]}
7. Bb3 {[%clk 0:02:59.2]} 7... Nc6 {[%clk 0:02:52]} 8. d4 {[%clk 0:02:59.3]}
8... a6 {[%clk 0:02:48.6]} 9. e5 {[%clk 0:02:57.5]} 9... Nd5 {[%clk 0:02:36.9]}
10. Rd1 {[%clk 0:02:55.6]} 10... Qc7 {[%clk 0:02:18.9]} 11. Qe4 {[%clk
0:02:45.2]} 11... cxd4 {[%clk 0:01:39.9]} 12. cxd4 {[%clk 0:02:43.4]} 12... dxe5
{[%clk 0:01:38]} 13. dxe5 {[%clk 0:02:43.6]} 13... Na5 {[%clk 0:01:05.3]} 14.
Bc2 {[%clk 0:02:41.3]} 14... f5 {[%clk 0:00:50.3]} 15. exf6 {[%clk 0:02:39.4]}
15... Nxf6 {[%clk 0:00:50.5]} 16. Qe2 {[%clk 0:02:37.1]} 16... Bd6 {[%clk
0:00:30.2]} 17. Nc3 {[%clk 0:02:35.8]} 17... Ng4 {[%clk 0:00:28.1]} 18. g3
{[%clk 0:02:19.5]} 18... e5 {[%clk 0:00:19.8]} 19. Be4 {[%clk 0:01:49.6]} 19...
Bc5 {[%clk 0:00:18.4]} 20. Bd5+ {[%clk 0:01:42.5]} 20... Kh8 {[%clk 0:00:18.1]}
21. Ne4 {[%clk 0:01:42.6]} 21... Bf5 {[%clk 0:00:09]} 22. Nxc5 {[%clk
0:01:17.4]} 22... Qxc5 {[%clk 0:00:09.9]} 23. h3 {[%clk 0:01:14.9]} 23... Nf6
{[%clk 0:00:07.4]} 24. Be3 {[%clk 0:01:14.9]} 24... Qb4 {[%clk 0:00:06.4]} 25.
Nxe5 {[%clk 0:01:04.7]} 25... Nc6 {[%clk 0:00:01.8]} 26. Nxc6 {[%clk 0:01:02]}
26... bxc6 {[%clk 0:00:01.9]} 27. Bg2 {[%clk 0:00:59.8]} 27... Rac8 {[%clk
0:00:01.3]} 28. Rac1 {[%clk 0:00:58.8]} 1-0